bitfinex/quotes_BTCUSD_20250219
["timestamp","ask_amount","ask_price","bid_price","bid_amount"]
[1739923586200,0.001,95820.0,95811.0,0.08974464]
[1739923586842,0.14684077,95821.0,95811.0,0.08374464]
[1739923587303,0.001,95819.0,95811.0,0.08974464]
[1739923587472,0.001,95819.0,95811.0,0.08374464]
[1739923587700,0.001,95819.0,95811.0,0.08974464]
[1739923588065,0.001,95820.0,95811.0,0.08374464]
[1739923588272,0.001,95820.0,95811.0,0.08874464]
[1739923588459,0.14684077,95821.0,95811.0,0.08374464]
[1739923589816,0.14684077,95821.0,95811.0,0.08874464]
[1739923590230,0.14684077,95821.0,95811.0,0.08374464]
[1739923590433,0.14684077,95821.0,95811.0,0.08874464]
[1739923590634,0.0001702,95831.0,95811.0,0.08874464]
[1739923590833,0.0001702,95831.0,95826.0,0.08374464]
[1739923593439,0.0001702,95831.0,95826.0,0.08774464]
[1739923593983,0.15,95829.0,95826.0,0.004]
[1739923594186,0.15,95827.0,95802.0,0.0819]
[1739923594399,0.14684077,95812.0,95808.0,0.08374464]
[1739923594629,0.15,95819.0,95808.0,0.08374464]
[1739923595283,0.15,95819.0,95802.0,8.683e-05]
[1739923595464,0.14684077,95812.0,95802.0,8.683e-05]
[1739923596309,0.14684077,95812.0,95802.0,0.00508683]
[1739923596649,0.14684077,95812.0,95802.0,8.683e-05]
[1739923596857,0.47104077,95830.0,95810.0,0.0482]
[1739923597044,0.001,95812.0,95810.0,0.0482]
[1739923597586,0.002,95812.0,95810.0,0.0482]
[1739923597815,0.001,95812.0,95810.0,0.0482]
[1739923598017,0.001,95812.0,95810.0,0.0522]
[1739923598791,0.001,95812.0,95811.0,0.0808]
[1739923599167,0.14684077,95821.0,95811.0,0.0808]
[1739923599364,0.14684077,95821.0,95819.0,0.08374464]
[1739923599708,0.14684077,95829.0,95819.0,0.08274464]
[1739923600067,0.14684077,95829.0,95819.0,0.08174464]
[1739923600933,0.001,95821.0,95819.0,0.08874464]
[1739923601133,0.001,95821.0,95819.0,0.08174464]
[1739923602584,0.001,95821.0,95820.0,0.0757]
[1739923602913,0.14684077,95830.0,95820.0,0.0757]
[1739923604317,0.14684077,95830.0,95820.0,0.0827]
[1739923613469,0.14684077,95830.0,95829.0,0.08374464]
[1739923613622,0.0001702,95831.0,95829.0,0.08374464]
[1739923616473,0.0001702,95831.0,95829.0,0.09074464]
[1739923616881,0.0001702,95831.0,95830.0,0.203127]
[1739923617300,0.0001702,95831.0,95830.0,0.281527]
[1739923618139,0.0001702,95831.0,95830.0,0.4496]
[1739923618458,0.00816329,95831.0,95829.0,0.00347056]
[1739923618625,0.01707962,95831.0,95808.0,0.0466]
[1739923618827,0.15,95819.0,95808.0,0.0466]
[1739923618992,0.15,95819.0,95810.0,0.08374464]
[1739923619872,0.15,95829.0,95810.0,0.08374464]
[1739923620126,0.15,95829.0,95820.0,0.08374464]
[1739923620891,0.14684077,95830.0,95821.0,0.0805]
[1739923621333,0.14684077,95830.0,95820.0,0.08374464]
[1739923621334,0.15,95829.0,95820.0,0.08374464]
[1739923621731,0.15,95829.0,95819.0,0.0003406]
[1739923622390,0.001467,95828.0,95819.0,0.0003406]
[1739923622966,0.001467,95828.0,95820.0,0.007]
[1739923623161,0.001467,95828.0,95821.0,0.08374464]
[1739923624527,0.001467,95828.0,95819.0,0.0053406]
[1739923624727,0.001467,95828.0,95820.0,0.08374464]
[1739923626504,0.002467,95828.0,95821.0,0.005]
[1739923626619,0.002467,95828.0,95820.0,0.08374464]
[1739923626830,0.002467,95828.0,95820.0,0.08874464]
[1739923627107,0.003467,95828.0,95820.0,0.08874464]
[1739923627443,0.003467,95828.0,95821.0,0.339921]
[1739923627645,0.003467,95828.0,95827.0,0.156532]
[1739923627848,0.003467,95828.0,95826.0,0.156533]
[1739923628777,0.003467,95828.0,95827.0,0.00104337]
[1739923628983,0.003467,95828.0,95827.0,0.08154337]
[1739923629180,0.003467,95828.0,95827.0,0.07145637]
[1739923629388,0.003467,95828.0,95827.0,0.22798837]
[1739923629584,0.002467,95828.0,95827.0,0.22798837]
[1739923629810,0.001467,95828.0,95827.0,0.22798837]
[1739923630009,0.002467,95828.0,95827.0,0.22798837]
[1739923630638,0.003467,95828.0,95827.0,0.23498837]
[1739923630849,0.003467,95828.0,95821.0,0.0481]
[1739923630850,0.001467,95828.0,95821.0,0.0481]
[1739923631691,0.0026372,95828.0,95827.0,0.007]
[1739923633062,0.0026372,95828.0,95820.0,0.08374464]
[1739923633063,0.0016372,95828.0,95820.0,0.08374464]
[1739923633282,0.0026372,95828.0,95821.0,0.007]
[1739923633485,0.0026372,95828.0,95820.0,0.08374464]
[1739923633696,0.0026372,95828.0,95827.0,0.007]
[1739923633907,0.0036372,95828.0,95827.0,0.007]
[1739923634170,0.0026372,95828.0,95820.0,0.08374464]
[1739923634322,0.01002683,95849.0,95820.0,0.09074464]
[1739923634473,0.04535357,95849.0,95820.0,0.09074464]
[1739923634696,0.01002683,95849.0,95830.0,0.08374464]
[1739923635361,0.03500413,95849.0,95830.0,0.08374464]
[1739923635570,0.03500413,95849.0,95840.0,0.08374464]
[1739923635787,0.08353219,95854.0,95840.0,0.08374464]
[1739923635987,0.14684077,95850.0,95840.0,0.08374464]
[1739923636312,0.18150812,95850.0,95840.0,0.08374464]
[1739923636788,0.18163947,95850.0,95840.0,0.08374464]
[1739923637236,5.2,95849.0,95840.0,0.005]
[1739923637473,0.2284,95847.0,95840.0,0.005]
[1739923638789,0.05884,95848.0,95840.0,0.005]
[1739923638961,0.05884,95848.0,95820.0,0.08374464]
[1739923639184,0.15,95849.0,95821.0,0.0777]
[1739923639387,0.15,95849.0,95840.0,0.006]
[1739923639545,0.05884,95848.0,95840.0,0.006]
[1739923639946,0.05884,95848.0,95821.0,0.0777]
[1739923640144,0.14684077,95840.0,95821.0,0.0777]
[1739923640405,0.14684077,95840.0,95821.0,0.0827]
[1739923640623,0.14684077,95840.0,95830.0,0.08374464]
[1739923641307,0.0347987,95850.0,95831.0,0.2786]
[1739923641470,0.0347987,95850.0,95843.0,0.0803]
[1739923641872,0.0347987,95850.0,95842.0,0.08374464]
[1739923643572,0.0349689,95850.0,95842.0,0.08874464]
[1739923643770,0.0349689,95850.0,95842.0,0.08374464]
[1739923644507,0.0349689,95850.0,95842.0,0.09074464]
[1739923645497,0.0349689,95850.0,95842.0,0.08374464]
[1739923645924,0.0349689,95850.0,95842.0,0.08774464]
[1739923646127,0.0349689,95850.0,95842.0,0.08374464]
[1739923646482,0.0349689,95850.0,95842.0,0.09074464]
[1739923647142,0.0349689,95850.0,95842.0,0.08374464]
[1739923647519,0.0349689,95850.0,95842.0,0.09074464]
[1739923651873,0.15,95849.0,95842.0,0.002852]
[1739923652098,0.0772,95848.0,95831.0,0.0003404]
[1739923652303,0.15,95840.0,95831.0,0.0003404]
[1739923653942,0.14684077,95841.0,95831.0,0.0003404]
[1739923654100,5.05,95840.0,95831.0,0.0003404]
[1739923654504,4.20161765,95840.0,95831.0,0.0003404]
[1739923654702,0.02051765,95840.0,95831.0,0.0003404]
[1739923655329,0.02051765,95840.0,95831.0,0.0033404]
[1739923655942,0.17051765,95840.0,95831.0,0.0033404]
[1739923656126,0.17051765,95840.0,95831.0,0.0003404]
[1739923656343,0.17051765,95840.0,95831.0,0.0033404]
[1739923656746,0.17051765,95840.0,95831.0,0.0003404]
[1739923656951,0.17051765,95840.0,95831.0,0.0023404]
[1739923657770,0.00771452,95832.0,95831.0,0.0023404]
[1739923658327,0.00771452,95832.0,95831.0,0.0003404]
[1739923659216,0.00771452,95832.0,95831.0,0.0033404]
[1739923659369,0.17051765,95840.0,95831.0,0.0792404]
[1739923659370,0.02051765,95840.0,95831.0,0.0792404]
[1739923659592,0.14684077,95841.0,95837.0,0.08374464]
[1739923659769,0.15,95846.0,95837.0,0.08374464]
[1739923660157,0.17076254,95846.0,95837.0,0.08374464]
[1739923660554,0.00785535,95838.0,95837.0,0.08374464]
[1739923661637,0.00785535,95838.0,95837.0,0.08674464]
[1739923662052,0.00785535,95838.0,95837.0,0.08374464]
[1739923662267,0.00785535,95838.0,95837.0,0.08674464]
[1739923662474,0.00785535,95838.0,95837.0,0.13494464]
[1739923663104,0.00785535,95838.0,95837.0,0.13194464]
[1739923663279,0.00785535,95838.0,95837.0,0.13594464]
[1739923664511,0.1501702,95849.0,95837.0,0.13194464]
[1739923664852,0.00797464,95841.0,95837.0,0.13494464]
[1739923665268,0.00797464,95841.0,95837.0,0.13194464]
[1739923665878,0.00797464,95841.0,95837.0,0.13594464]
[1739923666904,0.00797464,95841.0,95837.0,0.13194464]
[1739923667704,0.0001702,95849.0,95838.0,0.0819]
[1739923667945,0.0001702,95849.0,95847.0,0.08374464]
[1739923669599,0.0001702,95849.0,95847.0,0.08474464]
[1739923669978,0.0001702,95849.0,95848.0,0.0776]
[1739923671845,0.0011702,95849.0,95848.0,0.0776]
[1739923672019,0.0001702,95849.0,95848.0,0.0776]
[1739923672378,0.0011702,95849.0,95848.0,0.1289]
[1739923673429,0.0011702,95849.0,95848.0,0.285397]
[1739923673981,0.0011702,95849.0,95848.0,0.609997]
[1739923674581,0.0935535,95881.0,95850.0,0.208657]
[1739923674801,0.00025229,95855.0,95854.0,0.278687]
[1739923675177,0.00025229,95855.0,95854.0,0.277687]
[1739923676275,0.00125229,95855.0,95854.0,0.284687]
[1739923677683,0.0935535,95881.0,95865.0,0.156469]
[1739923677878,0.03605344,95873.0,95868.0,0.156465]
[1739923678090,0.000608,95878.0,95877.0,0.16284464]
[1739923678660,0.03563022,95878.0,95877.0,0.16284464]
[1739923679260,0.03563022,95878.0,95877.0,0.16984464]
[1739923684299,0.03563022,95878.0,95877.0,0.21644464]
[1739923684610,0.000608,95878.0,95877.0,0.37289464]
[1739923684743,0.000608,95878.0,95877.0,0.21644464]
[1739923685535,0.000608,95878.0,95877.0,0.20944464]
[1739923685933,0.000608,95878.0,95877.0,0.21644464]
[1739923686182,0.000608,95878.0,95877.0,0.20944464]
[1739923686551,0.000608,95878.0,95877.0,0.36589464]
[1739923687569,0.000608,95878.0,95877.0,0.37289464]
[1739923687770,0.000608,95878.0,95877.0,0.36589464]
[1739923688329,0.0001703,95885.0,95884.0,0.279039]
[1739923688533,0.00027985,95885.0,95884.0,0.40454265]
[1739923689290,0.00027985,95885.0,95884.0,0.70614265]
[1739923689703,0.00027985,95885.0,95884.0,0.72914265]
[1739923690306,0.0001702,95905.0,95904.0,0.279006]
[1739923690536,0.0001702,95905.0,95904.0,0.603606]
[1739923691828,0.0001702,95905.0,95904.0,0.610606]
[1739923692327,0.0001702,95905.0,95904.0,0.71310965]
[1739923692742,0.0001702,95905.0,95904.0,0.4542]
[1739923694346,0.0001702,95905.0,95904.0,0.4472]
[1739923694686,0.0001702,95905.0,95904.0,0.4542]
[1739923694886,0.0001702,95905.0,95904.0,0.610606]
[1739923695091,0.0001702,95905.0,95904.0,0.70610965]
[1739923695295,0.0001702,95905.0,95904.0,0.73610965]
[1739923695711,0.0001702,95905.0,95904.0,0.72910965]
[1739923695909,0.0001702,95905.0,95904.0,0.73610965]
[1739923696140,0.0001702,95905.0,95904.0,0.72910965]
[1739923697442,0.0001702,95905.0,95904.0,0.4472]
[1739923698038,0.0001702,95905.0,95904.0,0.4542]
[1739923698269,0.0001702,95905.0,95904.0,0.610606]
[1739923698469,0.0001702,95905.0,95904.0,0.603606]
[1739923699116,0.0001702,95905.0,95904.0,0.610606]
[1739923699301,0.0001702,95905.0,95904.0,0.603606]
[1739923699473,0.0001702,95905.0,95904.0,0.4472]
[1739923699678,0.0001702,95905.0,95904.0,0.4542]
[1739923701587,0.0001702,95905.0,95904.0,0.4472]
[1739923701966,0.0001702,95905.0,95904.0,0.4542]
[1739923702174,0.0001702,95905.0,95904.0,0.3316]
[1739923702381,0.0001702,95905.0,95904.0,0.007]
[1739923703213,0.0001702,95905.0,95903.0,0.08374464]
[1739923703414,0.0001702,95905.0,95904.0,0.007]
[1739923704883,0.0001702,95905.0,95903.0,0.08374464]
[1739923705114,0.0001702,95905.0,95904.0,0.007]
[1739923705485,0.0001702,95905.0,95903.0,0.08374464]
[1739923705685,0.0001702,95905.0,95904.0,0.007]
[1739923707951,0.0001702,95905.0,95904.0,0.00804265]
[1739923708517,0.0001702,95905.0,95904.0,0.09064265]
[1739923708944,0.0001702,95905.0,95904.0,0.0826]
[1739923709346,0.0001702,95905.0,95904.0,0.08364254]
[1739923709958,0.0001702,95905.0,95904.0,0.11009431]
[1739923710418,0.0001702,95905.0,95904.0,0.26650031]
[1739923710602,0.04018702,95919.0,95908.0,0.156398]
[1739923710756,0.00010953,95917.0,95916.0,0.08374464]
[1739923710961,0.00010953,95917.0,95916.0,0.13274464]
[1739923711161,0.00010953,95917.0,95916.0,0.21658703]
[1739923711385,0.00010953,95917.0,95916.0,0.21554464]
[1739923711909,0.00010953,95917.0,95916.0,0.22154464]
[1739923712962,0.00010953,95917.0,95916.0,0.21554464]
[1739923713169,0.00010953,95917.0,95916.0,0.22254464]
[1739923714018,0.023,95977.0,95916.0,0.22254464]
[1739923714153,0.14684077,95940.0,95916.0,0.22254464]
[1739923714355,0.14684077,95940.0,95916.0,0.21554464]
[1739923714584,0.18841903,95940.0,95916.0,0.21554464]
[1739923714761,0.18841903,95940.0,95917.0,0.00104237]
[1739923715255,0.18841903,95940.0,95916.0,0.22254464]
[1739923715460,0.14684077,95940.0,95916.0,0.21554464]
[1739923715705,0.0001701,95919.0,95916.0,0.21554464]
[1739923715906,0.0001701,95919.0,95917.0,0.006]
[1739923716128,0.0001701,95919.0,95916.0,0.21554464]
[1739923716432,0.0001701,95919.0,95918.0,0.00104237]
[1739923717416,0.0001701,95919.0,95918.0,0.00104235]
[1739923717585,0.0001701,95919.0,95918.0,0.02050545]
[1739923719188,0.0001701,95919.0,95918.0,0.0264631]
[1739923720372,0.0001701,95919.0,95918.0,0.007]
[1739923720783,0.0001701,95919.0,95909.0,0.4078]
[1739923721442,0.0001701,95919.0,95909.0,0.3246]
[1739923721618,0.1501701,95919.0,95918.0,0.007]
[1739923721819,0.22697119,95919.0,95904.0,0.00044973]
[1739923722026,0.15,95913.0,95909.0,0.007]
[1739923722457,0.15,95913.0,95904.0,0.00044973]
[1739923724251,0.15785583,95919.0,95909.0,0.007]
[1739923724456,0.15785583,95919.0,95904.0,0.00044973]
[1739923724865,0.15785583,95919.0,95904.0,0.00644973]
[1739923725215,0.15785583,95919.0,95904.0,0.00044973]
[1739923725429,0.15785583,95919.0,95909.0,0.006]
[1739923726837,0.01634636,95917.0,95909.0,0.006]
[1739923727254,0.01634636,95917.0,95904.0,0.00344973]
[1739923727255,0.01634636,95917.0,95904.0,0.00044973]
[1739923727462,0.15,95913.0,95904.0,0.00044973]
[1739923727699,0.15,95913.0,95909.0,0.006]
[1739923727906,0.0584,95912.0,95904.0,0.00044973]
[1739923728112,0.15,95913.0,95904.0,0.00044973]
[1739923728303,0.15,95913.0,95909.0,0.004]
[1739923728511,0.05836,95912.0,95904.0,0.00044973]
[1739923728714,0.15,95913.0,95904.0,0.00544973]
[1739923736110,0.01634723,95911.0,95904.0,0.00544973]
[1739923737114,0.17408729,95914.0,95904.0,0.00044973]
[1739923737315,0.23981932,95914.0,95904.0,0.00644973]
[1739923737674,0.01634741,95910.0,95904.0,0.00644973]
[1739923738023,0.01634741,95910.0,95904.0,0.00044973]
[1739923738435,0.01634741,95910.0,95904.0,0.00544973]
[1739923738667,0.01634741,95910.0,95904.0,0.00044973]
[1739923740304,0.01634741,95910.0,95904.0,0.00344973]
[1739923740508,0.01634741,95910.0,95904.0,0.00044973]
[1739923740916,0.01634741,95910.0,95904.0,0.00444973]
[1739923741659,0.01634741,95910.0,95904.0,0.00044973]
[1739923741865,0.01634741,95910.0,95904.0,0.00444973]
[1739923743064,0.15,95913.0,95904.0,0.00444973]
[1739923744291,0.11990966,95914.0,95904.0,0.00444973]
[1739923744712,0.11990966,95914.0,95904.0,0.00044973]
[1739923745120,0.11990966,95914.0,95904.0,0.00344973]
[1739923745447,0.23981932,95914.0,95904.0,0.00344973]
[1739923745794,0.00776834,95905.0,95888.0,0.0807]
[1739923745992,0.11990966,95898.0,95882.0,0.0807]
[1739923746231,0.11990966,95898.0,95876.0,0.0807]
[1739923746409,0.01635045,95895.0,95876.0,0.0807]
[1739923747399,0.01635045,95895.0,95885.0,0.0033402]
[1739923747604,0.01635045,95895.0,95885.0,0.0003402]
[1739923748007,0.01635045,95895.0,95885.0,0.0043402]
[1739923749073,0.01635045,95895.0,95887.0,0.08374464]
[1739923749444,0.01635045,95895.0,95888.0,0.0771]
[1739923749813,0.01635045,95895.0,95889.0,0.0492]
[1739923751431,0.01635045,95895.0,95889.0,0.0542]
[1739923751635,0.01635045,95895.0,95890.0,0.08344282]
[1739923751830,0.01635045,95895.0,95890.0,0.0824]
[1739923753055,0.00776834,95905.0,95890.0,0.08344273]
[1739923753229,0.11990966,95900.0,95897.0,0.08374464]
[1739923753605,0.00776834,95905.0,95897.0,0.08374464]
[1739923754740,0.00776834,95905.0,95897.0,0.08674464]
[1739923755156,0.0209716,95919.0,95897.0,0.08674464]
[1739923755360,0.11990966,95930.0,95911.0,0.0815]
[1739923755588,0.00765648,95912.0,95911.0,0.0815]
[1739923756238,0.02400271,95912.0,95911.0,0.0815]
[1739923756634,0.11990966,95921.0,95911.0,0.0815]
[1739923756839,0.01634649,95912.0,95911.0,0.0815]
[1739923757011,0.01634649,95912.0,95911.0,0.0845]
[1739923757221,0.01634649,95912.0,95911.0,0.0815]
[1739923757622,0.01634649,95912.0,95911.0,0.0855]
[1739923757802,0.01634649,95912.0,95911.0,0.0815]
[1739923758177,0.01634649,95912.0,95911.0,0.0855]
[1739923759322,0.02407904,95912.0,95911.0,0.1338]
[1739923759530,0.01634649,95912.0,95911.0,0.1298]
[1739923759947,0.01634649,95912.0,95911.0,0.1348]
[1739923760566,0.01634649,95912.0,95911.0,0.1298]
[1739923761505,0.01634649,95912.0,95911.0,0.1358]
[1739923762838,0.01634649,95912.0,95911.0,0.1298]
[1739923763040,0.01634649,95912.0,95911.0,0.1368]
[1739923763244,0.0001702,95932.0,95911.0,0.1368]
[1739923763445,0.0001702,95932.0,95920.0,0.08374464]
[1739923764018,0.11990966,95930.0,95920.0,0.08374464]
[1739923764864,0.11990966,95930.0,95920.0,0.08574464]
[1739923765190,0.0001702,95932.0,95921.0,0.0821]
[1739923765191,0.00778055,95931.0,95921.0,0.0821]
[1739923765396,0.00778055,95931.0,95930.0,0.08374464]
[1739923765607,0.0001702,95932.0,95930.0,0.08374464]
[1739923766471,0.0165141,95932.0,95930.0,0.08374464]
[1739923766874,0.0165141,95932.0,95930.0,0.08874464]
[1739923769158,0.0165141,95932.0,95930.0,0.005]
[1739923769353,0.0165141,95932.0,95914.0,0.0824]
[1739923769509,0.11990966,95924.0,95914.0,0.0824]
[1739923769913,0.11990966,95930.0,95914.0,0.0824]
[1739923770117,0.0163447,95922.0,95914.0,0.0824]
[1739923770525,0.0163447,95922.0,95914.0,0.0854]
[1739923770726,0.0163447,95922.0,95914.0,0.0824]
[1739923770926,0.0163447,95922.0,95921.0,0.08374464]
[1739923773166,0.0001702,95932.0,95921.0,0.08374464]
[1739923773384,0.11990966,95931.0,95921.0,0.08374464]
[1739923773602,0.11990966,95931.0,95921.0,0.08874464]
[1739923774256,0.0001702,95932.0,95922.0,0.0806]
[1739923774604,0.12007986,95932.0,95922.0,0.0806]
[1739923775624,0.11432865,95954.0,95922.0,0.0806]
[1739923775827,0.11990966,95932.0,95922.0,0.0806]
[1739923776227,0.11990966,95932.0,95922.0,0.0836]
[1739923776659,0.11990966,95932.0,95922.0,0.0806]
[1739923777474,0.01634354,95930.0,95922.0,0.0856]
[1739923777893,0.01634354,95930.0,95923.0,0.0451]
[1739923778040,0.01634354,95930.0,95924.0,0.0823]
[1739923779711,0.01634354,95930.0,95924.0,0.0873]
[1739923780481,0.01634354,95930.0,95924.0,0.08834238]
[1739923780962,0.01634354,95930.0,95925.0,0.00104238]
[1739923781286,0.01634354,95930.0,95926.0,0.0818]
[1739923781499,0.01634354,95930.0,95926.0,0.08284234]
[1739923782326,0.01634354,95930.0,95926.0,0.0818]
[1739923783303,0.12785324,95940.0,95926.0,0.0868]
[1739923783710,0.12785324,95940.0,95931.0,0.08374464]
[1739923786173,0.01634282,95938.0,95931.0,0.08574464]
[1739923786581,0.01634282,95938.0,95931.0,0.08374464]
[1739923786786,0.01634282,95938.0,95931.0,0.08574464]
[1739923786983,0.01634282,95938.0,95931.0,0.08374464]
[1739923787406,0.01634282,95938.0,95931.0,0.08674464]
[1739923788548,0.01634282,95938.0,95932.0,0.0824]
[1739923788724,0.01634282,95938.0,95933.0,0.0474]
[1739923788929,0.01634282,95938.0,95934.0,0.0824]
[1739923790636,0.01634282,95938.0,95934.0,0.0894]
[1739923792435,0.11983096,95944.0,95934.0,0.0894]
[1739923793387,0.11983096,95944.0,95934.0,0.0824]
[1739923793817,0.11983096,95944.0,95934.0,0.0874]
[1739923794653,0.04210667,95947.0,95941.0,0.08374464]
[1739923795068,0.11996215,95951.0,95942.0,0.0824]
[1739923795278,0.04299721,95947.0,95942.0,0.0824]
[1739923795482,0.00798909,95950.0,95942.0,0.0824]
[1739923796688,0.16238193,95951.0,95942.0,0.0824]
[1739923796810,0.01633972,95949.0,95942.0,0.0824]
[1739923797015,0.01633972,95949.0,95942.0,0.0884]
[1739923797390,0.01633972,95949.0,95942.0,0.08944223]
[1739923797600,0.01633972,95949.0,95944.0,0.0824]
[1739923799397,0.01633972,95949.0,95945.0,0.00104213]
[1739923799622,0.01633972,95949.0,95944.0,0.0894]
[1739923800208,0.01633972,95949.0,95944.0,0.0824]
[1739923800616,0.01633972,95949.0,95945.0,0.007]
[1739923801797,0.01633972,95949.0,95944.0,0.0824]
[1739923802196,0.01633972,95949.0,95944.0,0.0894]
[1739923802397,0.01633972,95949.0,95944.0,0.0824]
[1739923802842,0.01633972,95949.0,95945.0,0.007]
[1739923803132,0.04272117,95951.0,95944.0,0.0824]
[1739923803311,0.04272117,95951.0,95944.0,0.0894]
[1739923803894,0.04272117,95951.0,95947.0,0.0817]
[1739923804348,0.04272117,95951.0,95948.0,0.0817]
[1739923804889,0.00030139,95951.0,95948.0,0.0817]
[1739923805099,0.00030139,95951.0,95950.0,0.236531]
[1739923805371,0.00030139,95951.0,95950.0,0.282031]
[1739923806279,0.00030139,95951.0,95950.0,0.289031]
[1739923806476,0.01663847,95951.0,95950.0,0.289031]
[1739923806677,0.01663847,95951.0,95950.0,0.1327]
[1739923806984,0.01663847,95951.0,95950.0,0.289031]
[1739923807338,0.01663847,95951.0,95950.0,0.39153465]
[1739923807541,0.01663847,95951.0,95950.0,0.41453465]
[1739923807972,0.01663847,95951.0,95950.0,0.40753465]
[1739923808239,0.01663847,95951.0,95950.0,0.41453465]
[1739923809091,0.01663847,95951.0,95950.0,0.1327]
[1739923812944,0.00030139,95951.0,95950.0,0.1327]
[1739923813144,0.00030139,95951.0,95950.0,0.133742]
[1739923813567,0.00030139,95951.0,95950.0,0.1327]
[1739923815188,0.00030139,95951.0,95950.0,0.133742]
[1739923816329,0.01663822,95951.0,95950.0,0.133742]
[1739923816531,0.00030139,95951.0,95950.0,0.133742]
[1739923818862,0.00030139,95951.0,95950.0,0.290073]
[1739923819059,0.00030139,95951.0,95950.0,0.289031]
[1739923819442,0.01663824,95951.0,95950.0,0.289031]
[1739923819813,0.15,95979.0,95951.0,0.0762]
[1739923819988,0.15,95979.0,95960.0,0.0762]
[1739923820192,0.00153723,95978.0,95960.0,0.07724198]
[1739923820394,0.01633648,95973.0,95960.0,0.07724198]
[1739923820796,0.01633648,95973.0,95961.0,0.00104198]
[1739923821181,0.01633648,95973.0,95969.0,0.08374464]
[1739923821659,0.01633648,95973.0,95970.0,0.00104193]
[1739923821863,0.00153723,95978.0,95970.0,0.0767]
[1739923823253,0.01633578,95977.0,95970.0,0.0817]
[1739923824457,0.01633578,95977.0,95970.0,0.0767]
[1739923825156,0.01633578,95977.0,95970.0,0.0827]
[1739923826143,0.00153723,95978.0,95970.0,0.0827]
[1739923826344,0.00153723,95978.0,95971.0,0.00104188]
[1739923827790,0.00153723,95978.0,95971.0,0.00604188]
[1739923828297,0.00153723,95978.0,95971.0,0.005]
[1739923829170,0.01633492,95977.0,95971.0,0.005]
[1739923830577,0.01633492,95977.0,95970.0,0.0767]
[1739923830839,0.01633492,95977.0,95971.0,0.006]
[1739923831597,0.01633492,95977.0,95970.0,0.0767]
[1739923831795,0.01633492,95977.0,95970.0,0.0827]
[1739923832219,0.01633492,95977.0,95970.0,0.0767]
[1739923832426,0.01633492,95977.0,95971.0,0.006]
[1739923833276,0.00153723,95978.0,95971.0,0.006]
[1739923833478,0.0001702,95977.0,95971.0,0.006]
[1739923834537,0.0001702,95977.0,95970.0,0.0767]
[1739923834985,0.0001702,95977.0,95970.0,0.0827]
[1739923835217,0.0001702,95977.0,95970.0,0.0767]
[1739923835514,0.0001702,95977.0,95971.0,0.006]
[1739923835846,0.0001702,95977.0,95970.0,0.0767]
[1739923836048,0.01633489,95976.0,95970.0,0.0767]
[1739923836247,0.0001702,95977.0,95970.0,0.0827]
[1739923836483,0.0001702,95977.0,95970.0,0.0767]
[1739923836679,0.01633492,95975.0,95971.0,0.00104182]
[1739923836914,0.01633492,95975.0,95972.0,0.00104183]
[1739923838325,0.01633492,95975.0,95970.0,0.0767]
[1739923838521,0.01633492,95975.0,95972.0,0.006]
[1739923838743,0.01633492,95975.0,95973.0,0.00104185]
[1739923838954,0.01633492,95975.0,95972.0,0.006]
[1739923839425,0.01633492,95975.0,95970.0,0.0767]
[1739923839648,0.01629117,95975.0,95970.0,0.0827]
[1739923839789,0.01629117,95975.0,95970.0,0.0767]
[1739923841058,0.01629117,95975.0,95972.0,0.006]
[1739923841460,0.01629117,95975.0,95970.0,0.0767]
[1739923841687,0.01629117,95975.0,95970.0,0.0827]
[1739923841840,0.01629117,95975.0,95970.0,0.0767]
[1739923842225,0.01629117,95975.0,95972.0,0.006]
[1739923842399,0.01629117,95975.0,95972.0,0.00704184]
[1739923842611,0.01629117,95975.0,95972.0,0.00104184]
[1739923842991,0.0001702,95977.0,95972.0,0.00104184]
[1739923843203,0.0001702,95977.0,95970.0,0.0827]
[1739923844904,0.0001702,95977.0,95972.0,0.006]
[1739923845107,0.0001702,95977.0,95972.0,0.00704183]
[1739923845306,0.0001702,95977.0,95972.0,0.00104183]
[1739923845528,0.0001702,95977.0,95973.0,0.00104184]
[1739923846480,0.01650513,95977.0,95973.0,0.00104184]
[1739923847714,0.01650513,95977.0,95973.0,0.00704183]
[1739923849220,0.01650513,95977.0,95973.0,0.006]
[1739923850880,0.01650513,95977.0,95971.0,0.0003402]
[1739923851110,0.04129604,95976.0,95971.0,0.0003402]
[1739923851313,0.15,95959.0,95950.0,0.0003404]
[1739923852128,0.01633739,95957.0,95950.0,0.0003404]
[1739923852418,0.01633739,95957.0,95950.0,0.0063404]
[1739923853982,0.01633739,95957.0,95951.0,0.08374464]
[1739923854210,0.01633739,95957.0,95952.0,0.00104212]
[1739923854413,0.01733739,95957.0,95953.0,0.0832]
[1739923854613,0.01633739,95957.0,95954.0,0.00104204]
[1739923854732,0.01633739,95957.0,95955.0,0.00104204]
[1739923854932,0.01733739,95957.0,95954.0,0.00104204]
[1739923855135,0.01633739,95957.0,95954.0,0.00104204]
[1739923855565,0.01733739,95957.0,95954.0,0.00104204]
[1739923856176,0.001,95957.0,95954.0,0.00104204]
[1739923857196,0.001,95957.0,95954.0,0.00804204]
[1739923857443,0.002,95957.0,95954.0,0.00804204]
[1739923858919,0.002,95957.0,95954.0,0.00838224]
[1739923859289,0.01633695,95957.0,95954.0,0.00138224]
[1739923859495,0.01633695,95957.0,95955.0,0.1293]
[1739923859679,0.01633695,95957.0,95956.0,0.23756296]
[1739923859914,0.01633695,95957.0,95956.0,0.0802]
[1739923860085,0.01633695,95957.0,95956.0,0.08124199]
[1739923860445,0.01733695,95957.0,95956.0,0.08124199]
[1739923860651,0.01733695,95957.0,95956.0,0.23756299]
[1739923861016,0.01633695,95957.0,95956.0,0.4048]
[1739923861223,0.01733695,95957.0,95956.0,0.4118]
[1739923861838,0.01733695,95957.0,95956.0,0.568121]
[1739923862429,0.01633695,95957.0,95956.0,0.561121]
[1739923862646,0.01633695,95957.0,95956.0,0.71082465]
[1739923863043,0.00153723,95978.0,95957.0,0.1246]
[1739923863285,0.00153723,95978.0,95974.0,0.0774]
[1739923863669,0.00153723,95978.0,95975.0,0.0472]
[1739923863869,0.00153723,95978.0,95975.0,0.0482418]
[1739923864224,0.00153723,95978.0,95975.0,0.0472]
[1739923865085,0.00153723,95978.0,95975.0,0.0512]
[1739923865637,0.00153723,95978.0,95976.0,0.0768418]
[1739923866199,0.00153723,95978.0,95976.0,0.0758]
[1739923866385,0.01650247,95977.0,95976.0,0.0758]
[1739923867566,0.01650247,95977.0,95976.0,0.23313081]